bitfinex-derivatives/quotes_BTCF0:USTF0_20250213
["timestamp","ask_amount","ask_price","bid_price","bid_amount"]
[1739467521264,0.56989491,95708.0,95688.0,0.20913771]
[1739467521265,0.2089796,95689.0,95688.0,0.20913771]
[1739467521471,0.3608,95700.0,95688.0,0.00015681]
[1739467521773,0.37570718,95700.0,95688.0,0.00015681]
[1739467521967,0.3608,95692.0,95688.0,0.00015681]
[1739467522272,0.2089796,95689.0,95688.0,0.00015681]
[1739467522670,0.0522446,95690.0,95664.0,0.24926741]
[1739467522865,0.2090062,95677.0,95676.0,0.209005]
[1739467523059,0.2089959,95682.0,95665.0,0.0522575]
[1739467523461,0.2089959,95682.0,95670.0,0.32833048]
[1739467523776,0.208991,95684.0,95682.0,0.2089937]
[1739467524169,0.569791,95684.0,95682.0,0.2089937]
[1739467524372,0.0507,95683.0,95682.0,0.2089937]
[1739467524573,0.0507,95683.0,95670.0,0.1482439]
[1739467524766,0.12622435,95680.0,95670.0,0.23103855]
[1739467524973,0.2090189,95671.0,95670.0,0.209019]
[1739467525768,0.2090189,95671.0,95670.0,0.213019]
[1739467526470,0.2090189,95671.0,95670.0,0.004]
[1739467527167,0.2585189,95671.0,95670.0,0.014]
[1739467527472,0.2090276,95667.0,95666.0,0.00015681]
[1739467527670,0.5698276,95667.0,95666.0,0.00015681]
[1739467528076,0.5698276,95667.0,95666.0,0.20918661]
[1739467528273,0.3608,95667.0,95666.0,0.20918661]
[1739467528777,0.3608,95667.0,95666.0,0.21018661]
[1739467528974,0.0475,95671.0,95666.0,0.00115681]
[1739467529277,0.0475,95671.0,95670.0,0.2110211]
[1739467529870,0.0475,95671.0,95670.0,0.2090211]
[1739467530272,0.0473,95672.0,95666.0,0.00115681]
[1739467530471,0.0473,95672.0,95671.0,0.2090189]
[1739467531980,0.0473,95672.0,95671.0,0.5698189]
[1739467532666,0.048,95682.0,95671.0,0.37579837]
[1739467532975,0.2162,95696.0,95684.0,0.2089905]
[1739467533180,0.049,95699.0,95684.0,0.5697905]
[1739467534075,0.097,95708.0,95685.0,0.0983]
[1739467534272,0.097,95708.0,95698.0,0.12622435]
[1739467534476,0.097,95708.0,95701.0,0.2089521]
[1739467535187,0.2089545,95701.0,95695.0,0.20912251]
[1739467535888,0.3608,95700.0,95695.0,0.20912251]
[1739467536779,0.3608,95700.0,95695.0,0.21312251]
[1739467537176,0.3608,95700.0,95695.0,0.21012251]
[1739467537477,0.3608,95700.0,95699.0,0.2089577]
[1739467537982,0.2089404,95707.0,95699.0,0.2089577]
[1739467538285,0.2089404,95707.0,95702.0,0.2089499]
[1739467538486,0.2089429,95706.0,95702.0,0.2089499]
[1739467538785,0.11101509,95708.0,95695.0,0.21012161]
[1739467538985,0.11101509,95708.0,95695.0,0.00315681]
[1739467539180,0.2089516,95702.0,95695.0,0.00315681]
[1739467539379,0.3608,95701.0,95697.0,0.2089615]
[1739467539579,0.001,95700.0,95697.0,0.2089615]
[1739467539780,0.001,95700.0,95698.0,0.2089597]
[1739467540383,0.31995399,95708.0,95705.0,0.2089444]
[1739467540579,0.31995399,95708.0,95706.0,0.2089423]
[1739467540778,0.11101509,95708.0,95706.0,0.2089423]
[1739467541286,0.11101509,95708.0,95707.0,0.2089403]
[1739467541686,0.097,95708.0,95707.0,0.2089403]
[1739467542481,0.098,95708.0,95707.0,0.2089403]
[1739467542676,0.001,95708.0,95707.0,0.2089403]
[1739467543378,0.003,95708.0,95707.0,0.2089403]
[1739467544482,0.003,95708.0,95707.0,0.22262384]
[1739467544790,0.00015681,95714.0,95713.0,0.2089272]
[1739467546093,0.00215681,95714.0,95713.0,0.2089272]
[1739467546388,0.00156725,95728.0,95719.0,0.0522283]
[1739467546692,0.00156725,95728.0,95727.0,0.2088966]
[1739467547479,0.2162,95749.0,95748.0,0.2088508]
[1739467547681,0.0468,95749.0,95748.0,0.2088508]
[1739467548887,0.104,95749.0,95748.0,0.2098508]
[1739467549591,0.111,95749.0,95748.0,0.2108508]
[1739467553797,0.111,95749.0,95748.0,0.5716508]
[1739467554686,0.014,95749.0,95748.0,0.5716508]
[1739467555689,0.007,95749.0,95748.0,0.5716508]
[1739467555897,0.014,95749.0,95748.0,0.5716508]
[1739467557100,0.04794448,95758.0,95748.0,0.3628]
[1739467557101,0.00014448,95758.0,95748.0,0.3628]
[1739467557296,0.00014448,95758.0,95757.0,0.5696312]
[1739467558598,0.00614448,95758.0,95757.0,0.5696312]
[1739467558801,0.00914448,95758.0,95757.0,0.5696312]
[1739467559294,0.01014448,95758.0,95757.0,0.5706312]
[1739467559897,0.13767774,95771.0,95768.0,0.2088072]
[1739467560098,0.15171842,95771.0,95768.0,0.2088072]
[1739467561194,0.2088029,95770.0,95768.0,0.2088072]
[1739467561399,0.01404068,95771.0,95768.0,0.2098072]
[1739467561597,0.208805,95769.0,95768.0,0.001]
[1739467561996,0.208805,95769.0,95768.0,0.002]
[1739467562795,0.208805,95769.0,95768.0,0.2098073]
[1739467563002,0.10980714,95771.0,95768.0,0.002]
[1739467563195,0.3047007,95771.0,95770.0,0.2088029]
[1739467563793,0.0959,95771.0,95770.0,0.2088029]
[1739467564490,0.0481,95771.0,95770.0,0.2088029]
[1739467565200,0.0481,95771.0,95770.0,0.2098029]
[1739467565498,0.0474,95783.0,95782.0,0.2087767]
[1739467565798,0.0978,95783.0,95782.0,0.2087767]
[1739467566004,0.11172105,95783.0,95782.0,0.2087767]
[1739467566802,0.4586,95783.0,95776.0,0.2087886]
[1739467566995,0.4586,95783.0,95781.0,0.2087788]
[1739467567508,0.4586,95783.0,95770.0,0.12822435]
[1739467567509,0.4586,95783.0,95775.0,0.2087911]
[1739467567808,0.4586,95783.0,95782.0,0.001]
[1739467568191,0.4586,95783.0,95782.0,0.002]
[1739467568698,0.0504,95783.0,95782.0,0.01489184]
[1739467568906,0.0461,95790.0,95782.0,0.001]
[1739467569104,0.0461,95790.0,95789.0,0.2087615]
[1739467570096,0.098,95799.0,95798.0,0.2087419]
[1739467571505,0.09585749,95800.0,95798.0,0.2087419]
[1739467571809,0.09585749,95800.0,95798.0,0.2097419]
[1739467572003,0.09585749,95800.0,95798.0,0.2107419]
[1739467573697,0.2162,95824.0,95798.0,0.2107419]
[1739467573698,0.2162,95824.0,95823.0,0.2086874]
[1739467573894,0.00216598,95825.0,95823.0,0.2086874]
[1739467574098,0.00156597,95825.0,95823.0,0.2086874]
[1739467574301,0.1469,95833.0,95832.0,0.2086678]
[1739467575403,0.1469,95833.0,95832.0,0.2096678]
[1739467575599,0.1469,95833.0,95832.0,0.2106678]
[1739467576113,0.1469,95833.0,95832.0,0.22483768]
[1739467581115,0.1469,95833.0,95832.0,0.01616988]
[1739467581717,0.1469,95833.0,95832.0,0.22483778]
[1739467582217,0.3555657,95833.0,95832.0,0.01616988]
[1739467584719,0.3555657,95833.0,95832.0,0.002]
[1739467584911,0.2086962,95819.0,95818.0,0.2086967]
[1739467585110,0.2087049,95815.0,95814.0,0.20886124]
[1739467585315,0.2087049,95815.0,95814.0,0.01401955]
[1739467586609,0.5694999,95819.0,95818.0,0.2086984]
[1739467587212,0.5704999,95819.0,95818.0,0.2096984]
[1739467590221,0.5694999,95819.0,95818.0,0.2106984]
[1739467590622,0.5694999,95819.0,95818.0,0.002]
[1739467591117,0.5694962,95819.0,95818.0,0.001]
[1739467591316,0.5694962,95819.0,95818.0,0.003]
[1739467591725,0.3608,95819.0,95814.0,0.01401955]
[1739467591925,0.2087049,95815.0,95814.0,0.01401955]
[1739467592314,0.2087049,95815.0,95814.0,0.00015654]
[1739467592515,0.3618,95819.0,95814.0,0.00015654]
[1739467592718,0.3618,95819.0,95818.0,0.2086984]
[1739467593019,0.001,95819.0,95818.0,0.2086984]
[1739467594020,0.2086728,95830.0,95829.0,0.2086745]
[1739467594221,0.3608,95838.0,95815.0,0.1438]
[1739467594528,0.2086813,95829.0,95828.0,0.2086755]
[1739467597320,0.3608,95838.0,95832.0,0.2086679]
[1739467597618,0.001,95829.0,95828.0,0.2086766]
[1739467598423,0.3608,95838.0,95837.0,0.208657]
[1739467600729,0.3608,95838.0,95837.0,0.209657]
[1739467600933,0.3608,95838.0,95837.0,0.211657]
[1739467601136,0.2086485,95841.0,95840.0,0.2086505]
[1739467601431,0.4248369,95848.0,95847.0,0.2086353]
[1739467602634,0.4248369,95848.0,95847.0,0.22171827]
[1739467603241,0.2162,95859.0,95847.0,0.01308297]
[1739467603424,0.2162,95859.0,95858.0,0.2086113]
[1739467603731,0.2086048,95862.0,95850.0,0.0521571]
[1739467603925,0.2086048,95862.0,95861.0,0.2086048]
[1739467604628,0.2086142,95857.0,95856.0,0.2086151]
[1739467604837,0.2086243,95853.0,95852.0,0.2086215]
[1739467605026,0.001,95859.0,95858.0,0.2086113]
[1739467605225,0.2096092,95859.0,95858.0,0.2086113]
[1739467605433,0.2086264,95853.0,95852.0,0.2086223]
[1739467606524,0.3608,95856.0,95847.0,0.01299313]
[1739467606736,0.3608,95856.0,95840.0,0.12622435]
[1739467606737,0.0498,95855.0,95840.0,0.12622435]
[1739467606936,0.2086483,95843.0,95842.0,0.2086458]
[1739467608429,0.0498,95855.0,95839.0,0.5076]
[1739467608634,0.2086483,95841.0,95840.0,0.33486955]
[1739467608837,0.2086483,95841.0,95840.0,0.2086452]
[1739467609237,0.0498,95855.0,95839.0,0.3608]
[1739467609438,0.2086374,95846.0,95845.0,0.33486285]
[1739467609634,0.2086374,95846.0,95845.0,0.2086385]
[1739467610446,0.0498,95855.0,95840.0,0.001]
[1739467610751,0.0498,95855.0,95854.0,0.20862]
[1739467610943,0.2086179,95855.0,95854.0,0.20862]
[1739467612047,0.0483,95858.0,95857.0,0.2086135]
[1739467612248,0.21680001,95860.0,95859.0,0.2086092]
[1739467612451,0.2162,95860.0,95859.0,0.2086092]
[1739467612748,0.208607,95860.0,95859.0,0.2086092]
[1739467613545,0.209607,95860.0,95859.0,0.2096092]
[1739467616943,0.209607,95860.0,95859.0,0.22273115]
[1739467617140,0.001,95860.0,95859.0,0.22273115]
[1739467618253,0.001,95860.0,95859.0,0.16894795]
[1739467618639,0.2085896,95869.0,95868.0,0.2085896]
[1739467619655,0.2086035,95864.0,95863.0,0.2085946]
[1739467620547,0.2086035,95864.0,95863.0,0.20852036]
[1739467621152,0.208607,95860.0,95859.0,0.01327849]
[1739467621454,0.208607,95860.0,95859.0,0.22188769]
[1739467622549,0.208607,95860.0,95859.0,0.01327849]
[1739467623246,0.208607,95860.0,95859.0,0.01427849]
[1739467623743,0.0508,95863.0,95859.0,0.01427849]
[1739467623950,0.0508,95863.0,95862.0,0.2086026]
[1739467625247,0.00156497,95870.0,95859.0,0.01427849]
[1739467625451,0.00156497,95870.0,95869.0,0.5693874]
[1739467625750,0.00156497,95870.0,95869.0,0.2085874]
[1739467626157,0.2085697,95878.0,95877.0,0.2085677]
[1739467626659,0.2085697,95878.0,95877.0,0.16043408]
[1739467626955,0.2085697,95878.0,95877.0,0.11715244]
[1739467627551,0.2085697,95878.0,95877.0,0.11815244]
[1739467627751,0.54328371,95879.0,95866.0,0.3608]
[1739467627955,0.2086069,95860.0,95856.0,0.2086138]
[1739467628153,0.2086069,95860.0,95859.0,0.01425938]
[1739467628353,0.2086069,95860.0,95859.0,0.00015654]
[1739467629065,0.0521525,95859.0,95830.0,0.12622435]
[1739467629358,0.2086466,95842.0,95838.0,0.2086539]
[1739467629561,0.3608,95839.0,95831.0,0.20867]
[1739467629758,0.2086746,95829.0,95828.0,0.0466]
[1739467629962,0.2086735,95830.0,95828.0,0.0466]
[1739467630157,0.2086735,95830.0,95828.0,0.2552753]
[1739467630353,0.00015563,95838.0,95828.0,0.05980452]
[1739467630560,0.00015563,95838.0,95837.0,0.2086572]
[1739467632059,0.3608,95862.0,95832.0,0.0483]
[1739467632266,0.3608,95862.0,95860.0,0.2086068]
[1739467632957,0.2086069,95861.0,95851.0,0.148]
[1739467633160,0.2086069,95861.0,95856.0,0.2086141]
[1739467633554,0.2086069,95861.0,95851.0,0.148]
[1739467633755,0.2086069,95861.0,95858.0,0.2086098]
[1739467634163,0.2086069,95861.0,95859.0,0.2086088]
[1739467634359,0.3608,95862.0,95851.0,0.148]
[1739467634564,0.07272,95867.0,95866.0,0.208594]
[1739467634771,0.0015652,95868.0,95866.0,0.208594]
[1739467636062,0.0015652,95868.0,95866.0,0.209594]
[1739467636567,0.0015652,95868.0,95866.0,0.22258145]
[1739467636762,0.0015652,95868.0,95866.0,0.22358145]
[1739467638058,0.2085627,95881.0,95880.0,0.2085636]
[1739467638567,0.0473,95885.0,95874.0,0.2085758]
[1739467638568,0.2085704,95877.0,95874.0,0.2085758]
[1739467639070,0.2085725,95876.0,95874.0,0.2085758]
[1739467639266,0.208581,95872.0,95871.0,0.00015645]
[1739467640372,0.208581,95872.0,95871.0,0.00115645]
[1739467641573,0.208581,95872.0,95871.0,0.00215645]
[1739467642970,0.208581,95872.0,95871.0,0.002]
[1739467643170,0.208581,95872.0,95871.0,0.0017165]
[1739467643685,0.208581,95872.0,95871.0,0.2102997]
[1739467643869,0.3608,95877.0,95871.0,0.2102997]
[1739467643870,0.2085728,95876.0,95875.0,0.2085723]
[1739467644074,0.3608,95877.0,95876.0,0.2085723]
[1739467644569,0.2085638,95880.0,95879.0,0.2085658]
[1739467645471,0.2085701,95877.0,95876.0,0.002]
[1739467645667,0.5693701,95877.0,95876.0,0.002]
[1739467645870,0.5693701,95877.0,95876.0,0.001]
[1739467646663,0.5693701,95877.0,95876.0,0.2085723]
[1739467647577,0.5693701,95877.0,95876.0,0.2095723]
[1739467647872,0.2085701,95877.0,95876.0,0.2095723]
[1739467648073,0.2085597,95882.0,95881.0,0.2085592]
[1739467648573,0.15972192,95885.0,95884.0,0.2085549]
[1739467649780,0.36827462,95885.0,95884.0,0.2085549]
[1739467649971,0.15972192,95885.0,95884.0,0.22151919]
[1739467650173,0.15972192,95885.0,95884.0,0.22251919]
[1739467650373,0.11242192,95885.0,95884.0,0.22251919]
[1739467651282,0.1,95900.0,95899.0,0.2085223]
[1739467653775,0.1,95900.0,95899.0,0.2095223]
[1739467654171,0.1,95900.0,95899.0,0.2105223]
[1739467655075,0.09884346,95900.0,95899.0,0.2105223]
[1739467659074,0.07563208,95900.0,95899.0,0.2105223]
[1739467659471,2e-08,95900.0,95899.0,0.2105223]
[1739467659872,0.3608,95939.0,95900.0,0.0521298]
[1739467660077,0.3608,95939.0,95938.0,0.2084375]
[1739467661279,0.3608,95944.0,95929.0,0.48702435]
[1739467661480,0.3608,95944.0,95943.0,0.2084266]
[1739467662482,0.0463,95949.0,95948.0,0.2084158]
[1739467663283,0.0482,95954.0,95953.0,0.208405]
[1739467664390,0.00156381,95959.0,95958.0,0.2083941]
[1739467665584,0.00156381,95959.0,95958.0,0.2093941]
[1739467666687,0.00156381,95959.0,95958.0,0.2103941]
[1739467672789,0.00156381,95959.0,95958.0,0.002]
[1739467673784,0.2084247,95944.0,95943.0,0.01263124]
[1739467673981,0.3608,95945.0,95934.0,0.00015635]
[1739467674281,0.00156381,95959.0,95957.0,0.2083959]
[1739467674486,0.00156381,95959.0,95934.0,0.01260844]
[1739467674487,0.2084032,95954.0,95949.0,0.2084134]
[1739467674685,0.0485,95958.0,95940.0,0.12622435]
[1739467675384,0.3608,95955.0,95934.0,0.01305343]
[1739467675584,0.2084108,95951.0,95940.0,0.12622435]
[1739467675779,0.3608,95955.0,95954.0,0.208403]
[1739467675977,0.5692008,95955.0,95954.0,0.208403]
[1739467676178,0.3608,95955.0,95954.0,0.208403]
[1739467676988,0.3608,95955.0,95954.0,0.210403]
[1739467677192,0.3618,95955.0,95954.0,0.210403]
[1739467677486,0.001,95955.0,95954.0,0.210403]
[1739467677683,0.36140001,95964.0,95954.0,0.210403]
[1739467677684,0.2083489,95979.0,95974.0,0.2083596]
[1739467677886,0.4334,95975.0,95974.0,0.2083596]
[1739467678189,0.4334,95975.0,95974.0,0.22081284]
[1739467678493,0.3608,95975.0,95974.0,0.22081284]
[1739467678683,0.3608,95984.0,95983.0,0.20834]
[1739467679084,0.36236308,95995.0,95975.0,0.0520891]
[1739467679289,0.36236308,95995.0,95994.0,0.2083162]
[1739467679290,0.57067708,95995.0,95994.0,0.2083162]
[1739467679986,0.36236308,95995.0,95985.0,0.00015626]
[1739467680183,0.5691335,95986.0,95985.0,0.00015626]
[1739467680382,0.5691335,95986.0,95985.0,0.20849196]
[1739467680583,0.3608,95986.0,95985.0,0.20849196]
[1739467681198,0.5691335,95986.0,95985.0,0.20949196]
[1739467681388,0.5691335,95986.0,95985.0,0.00115626]
[1739467682188,0.5691335,95986.0,95985.0,0.00215626]
[1739467682390,0.5691335,95986.0,95985.0,0.21049206]
[1739467682593,0.5691335,95986.0,95985.0,0.20949206]
[1739467682796,0.5691335,95986.0,95985.0,0.21049206]
[1739467683088,0.5691335,95986.0,95985.0,0.00215626]
[1739467684589,0.5691335,95986.0,95985.0,0.21049206]
[1739467685484,0.40829435,95986.0,95985.0,0.21049206]
[1739467686396,0.2083574,95978.0,95977.0,0.2083519]
[1739467686998,0.2083574,95975.0,95974.0,0.01255026]
[1739467687194,0.2083689,95970.0,95969.0,0.2083681]
[1739467687497,0.2083689,95970.0,95969.0,0.22124065]
[1739467688712,0.1083689,95970.0,95969.0,0.22124065]
[1739467689000,0.4691689,95970.0,95969.0,0.01287255]
[1739467689296,0.2083705,95969.0,95960.0,0.00015626]
[1739467689595,0.3608,95970.0,95963.0,0.2083828]
[1739467689796,0.5691683,95970.0,95969.0,0.001]
[1739467690698,0.9299683,95970.0,95969.0,0.001]
[1739467690999,0.9299683,95970.0,95969.0,0.2093705]
[1739467691898,0.9299683,95970.0,95969.0,0.2083705]
[1739467692105,0.7216,95970.0,95969.0,0.2083705]
[1739467692298,0.3608,95970.0,95960.0,0.00015626]
[1739467692498,0.2083878,95962.0,95961.0,0.2083878]
[1739467693693,0.2083878,95961.0,95960.0,0.01302707]
[1739467694201,0.2083878,95961.0,95960.0,0.00015626]
[1739467694401,0.2083878,95961.0,95960.0,0.00011208]
[1739467694702,0.2084326,95941.0,95940.0,0.2084291]
[1739467695102,0.20844,95937.0,95934.0,0.2084447]
[1739467695298,0.20844,95937.0,95936.0,0.22243643]
[1739467695505,0.20844,95937.0,95936.0,0.21000548]
[1739467696095,0.20844,95937.0,95936.0,0.2134421]
[1739467696295,0.20844,95937.0,95936.0,0.005]
[1739467696495,0.20844,95937.0,95936.0,0.009]
[1739467696895,0.20844,95937.0,95936.0,0.2164422]
[1739467697098,0.20844,95937.0,95936.0,0.02049497]
[1739467697600,0.20844,95937.0,95936.0,0.008]
[1739467697801,0.281,95937.0,95936.0,0.008]
[1739467698603,0.2084595,95928.0,95927.0,0.00015635]
[1739467698805,0.5692595,95928.0,95927.0,0.01267029]
[1739467699003,0.5692595,95928.0,95927.0,0.00015635]
[1739467699609,0.0521171,95924.0,95893.0,0.3608]
[1739467699909,0.2085053,95907.0,95906.0,0.2085059]
[1739467700904,0.2085053,95907.0,95906.0,0.22110077]
[1739467702199,0.2135053,95907.0,95906.0,0.01259487]
[1739467702510,0.2085248,95898.0,95897.0,0.00015635]
[1739467702705,0.2085248,95898.0,95897.0,0.20868325]
[1739467703505,0.2085248,95898.0,95897.0,0.00015635]
[1739467704515,0.2115248,95898.0,95897.0,0.01263613]
[1739467704717,0.2115248,95898.0,95897.0,0.00015635]
[1739467705611,0.003,95898.0,95897.0,0.20868325]
[1739467706619,0.003,95898.0,95897.0,0.22128827]
[1739467707407,0.12622435,95910.0,95897.0,0.22128827]
[1739467707408,0.2085013,95909.0,95908.0,0.2085024]
[1739467708217,0.12622435,95918.0,95897.0,0.01876137]
[1739467708411,0.0521191,95921.0,95897.0,0.00615635]
[1739467708412,0.2085206,95900.0,95897.0,0.00615635]
[1739467708609,0.2085235,95899.0,95898.0,0.2085245]
[1739467709211,0.3608,95906.0,95897.0,0.00015635]
[1739467709212,0.2085248,95898.0,95897.0,0.00015635]
[1739467709412,0.2085248,95898.0,95897.0,0.01286511]
[1739467709617,0.2085248,95898.0,95897.0,0.00015635]
[1739467710012,0.2085248,95898.0,95897.0,0.20868325]
[1739467711714,0.2085166,95903.0,95902.0,0.2085095]
[1739467712510,0.3608,95906.0,95905.0,0.2085095]
[1739467712714,0.5693074,95906.0,95905.0,0.2085095]
[1739467712919,0.2085074,95906.0,95905.0,0.2085095]
[1739467713228,0.2085248,95898.0,95897.0,0.01263744]
[1739467714511,0.36440001,95906.0,95897.0,0.01263744]
[1739467714711,0.003,95906.0,95897.0,0.01263744]
[1739467714911,0.003,95906.0,95903.0,0.2085139]
[1739467715107,0.003,95898.0,95897.0,0.22116444]
[1739467715916,0.12622435,95910.0,95909.0,0.2085009]
[1739467716113,0.2084987,95910.0,95909.0,0.2085009]
[1739467716318,0.2084948,95912.0,95911.0,0.2084922]
[1739467716522,0.00015635,95916.0,95913.0,0.2084922]
[1739467716920,0.00015635,95916.0,95915.0,0.2084878]
[1739467718322,0.00115635,95916.0,95915.0,0.22082887]
[1739467719024,0.00015635,95916.0,95915.0,0.22182887]
[1739467719225,0.00015635,95916.0,95915.0,0.22282887]
[1739467720520,0.00015635,95916.0,95915.0,0.22182887]
[1739467720722,0.00015635,95916.0,95915.0,0.22082887]
[1739467721025,0.00115635,95916.0,95915.0,0.22082887]
[1739467724032,0.00015635,95916.0,95915.0,0.22082887]
[1739467724231,0.00115635,95916.0,95915.0,0.22082887]
[1739467725931,0.2084748,95921.0,95919.0,0.2084788]
[1739467726122,0.2084748,95921.0,95915.0,0.01234107]
[1739467726322,0.2084748,95921.0,95920.0,0.2084769]
[1739467727129,0.3608,95926.0,95907.0,0.10577323]
[1739467727329,0.33470325,95920.0,95907.0,0.10577323]
[1739467727524,0.33470325,95920.0,95919.0,0.2084791]
[1739467727725,0.2084789,95920.0,95919.0,0.2084791]
[1739467729523,0.2104789,95920.0,95919.0,0.2084791]
[1739467730526,0.002,95920.0,95919.0,0.2084791]
[1739467731132,0.2084683,95924.0,95923.0,0.2084704]
[1739467732933,0.2114683,95924.0,95923.0,0.22047418]
[1739467733328,0.2114683,95924.0,95923.0,0.2084704]
[1739467735136,0.2114683,95924.0,95923.0,0.22064635]
[1739467735727,0.5722683,95924.0,95923.0,0.22064635]
[1739467737242,0.5722683,95924.0,95923.0,0.2084704]
[1739467738032,0.5722683,95924.0,95923.0,0.22046197]
[1739467739032,0.5722683,95924.0,95923.0,0.1549646]
[1739467739228,0.2084804,95919.0,95918.0,0.2084803]
[1739467739433,0.2810004,95919.0,95918.0,0.22056224]
[1739467739739,0.2084804,95919.0,95918.0,0.22056224]
[1739467740441,0.2094804,95919.0,95918.0,0.01208194]
[1739467740637,0.001,95919.0,95907.0,0.45476]
[1739467740937,0.2084986,95911.0,95910.0,0.2084948]
[1739467741133,0.208503,95908.0,95907.0,0.4180928]
[1739467741441,0.2085226,95899.0,95898.0,0.2085241]
[1739467742041,0.2085248,95898.0,95893.0,0.3036351]
[1739467742243,0.2085248,95898.0,95897.0,0.01207834]
[1739467742443,0.2085248,95898.0,95897.0,0.00015635]
[1739467742644,0.5693248,95898.0,95897.0,0.00015635]
[1739467744139,0.5693248,95898.0,95897.0,0.01115635]
[1739467744942,0.5693248,95898.0,95897.0,0.023419]
[1739467746947,0.5693248,95898.0,95895.0,0.17376082]
[1739467747744,0.3608,95898.0,95887.0,0.0471]
[1739467747950,0.2085437,95890.0,95887.0,0.0471]
[1739467748244,0.2085291,95896.0,95895.0,0.007]
[1739467748850,0.2085552,95884.0,95883.0,0.00015635]
[1739467750742,0.2085552,95884.0,95883.0,0.00215635]
[1739467751341,0.3608,95885.0,95883.0,0.002]
[1739467751538,0.2086161,95856.0,95855.0,0.0463]
[1739467751748,0.5694161,95856.0,95855.0,0.0463]
[1739467752343,0.2086205,95854.0,95853.0,0.01236945]
[1739467752550,0.2086205,95854.0,95851.0,0.046]
[1739467753541,0.2086229,95853.0,95851.0,0.046]
[1739467753747,0.001,95854.0,95847.0,0.0463]
[1739467754048,0.2086336,95848.0,95847.0,0.0463]
[1739467754249,0.5694336,95848.0,95847.0,0.0463]
[1739467754645,0.3608,95848.0,95847.0,0.26693018]
[1739467756654,0.3608,95848.0,95847.0,0.26793018]
[1739467757162,0.5694336,95848.0,95847.0,0.05929448]
[1739467758553,0.3608,95848.0,95847.0,0.26793018]
[1739467758950,0.12622435,95860.0,95849.0,0.2086292]
[1739467759150,0.5694214,95854.0,95847.0,0.05929448]
[1739467759350,0.5694214,95854.0,95850.0,0.2086289]
[1739467760253,0.5694214,95854.0,95847.0,0.05829448]
[1739467760654,0.3608,95854.0,95853.0,0.2086227]
[1739467761650,0.00015643,95863.0,95847.0,0.05829448]
[1739467761854,0.00015643,95863.0,95862.0,0.2086031]
[1739467762750,0.00015643,95863.0,95862.0,0.22105834]
[1739467763855,0.00215643,95863.0,95862.0,0.22105834]
[1739467764560,0.00415643,95863.0,95862.0,0.22105834]
[1739467764956,0.00215643,95863.0,95862.0,0.58185834]
[1739467765152,0.00415643,95863.0,95862.0,0.22105834]
[1739467765660,0.00515643,95863.0,95862.0,0.22105834]
[1739467766463,0.00015643,95863.0,95862.0,0.22205834]
[1739467766653,0.00215643,95863.0,95862.0,0.22205834]
[1739467767160,0.00015643,95863.0,95862.0,0.22305834]
[1739467768059,0.2622992,95872.0,95868.0,0.2085897]
[1739467768255,0.13607485,95872.0,95868.0,0.2085881]
[1739467768456,0.00156496,95874.0,95862.0,0.01445524]
[1739467768656,0.2085845,95871.0,95862.0,0.01445524]
[1739467768855,0.12622435,95872.0,95862.0,0.01345524]
[1739467769061,0.00156496,95874.0,95863.0,0.3608]
[1739467769255,0.00156496,95874.0,95873.0,0.2085791]
[1739467771464,0.00556496,95874.0,95873.0,0.2085791]
[1739467772266,0.00156496,95874.0,95873.0,0.2085791]
[1739467772858,0.00156496,95874.0,95873.0,0.2554791]
[1739467774267,0.00156496,95874.0,95873.0,0.2564791]
[1739467774468,0.00015643,95877.0,95876.0,0.2085726]
[1739467775564,0.5693287,95897.0,95876.0,0.2085726]
[1739467775565,0.3608,95897.0,95876.0,0.2085726]
[1739467775765,0.3608,95897.0,95896.0,0.2085291]
[1739467775966,0.5693269,95897.0,95896.0,0.2085291]
[1739467776159,0.2085377,95893.0,95891.0,0.2085398]
[1739467776356,0.2085378,95892.0,95891.0,0.2085398]
[1739467777068,0.3608,95897.0,95887.0,0.2085465]
[1739467777466,0.2085396,95892.0,95890.0,0.2085416]
[1739467777663,0.20854,95891.0,95890.0,0.15928788]
[1739467777863,0.2085532,95887.0,95886.0,0.2085508]
[1739467778463,0.2085532,95887.0,95886.0,0.22416537]
[1739467778670,0.2085408,95891.0,95890.0,0.2085418]
[1739467779571,0.2085428,95890.0,95888.0,0.2085465]
[1739467779963,0.2085428,95890.0,95886.0,0.0151445]
[1739467779964,0.2085428,95890.0,95889.0,0.2085443]
[1739467780172,0.004,95887.0,95886.0,0.0151445]
[1739467780361,0.004,95887.0,95886.0,0.2085509]
[1739467780967,0.004,95887.0,95886.0,0.22375339]
[1739467781371,0.005,95887.0,95886.0,0.22375339]
[1739467781668,0.001,95887.0,95886.0,0.22375339]
[1739467782871,0.3608,95897.0,95896.0,0.2085291]
[1739467783560,0.0957,95899.0,95898.0,0.2085248]
[1739467783965,0.00015643,95901.0,95900.0,0.2085204]
[1739467786067,0.00615643,95901.0,95900.0,0.2095204]
[1739467789365,0.01115643,95901.0,95900.0,0.2095204]
[1739467791975,0.01115643,95901.0,95900.0,0.16789154]
[1739467795177,0.01115643,95901.0,95900.0,0.52869154]
[1739467800480,0.01115643,95901.0,95900.0,0.16789154]
[1739467800787,0.01115643,95901.0,95900.0,0.2095204]
[1739467802679,0.21967463,95901.0,95900.0,0.001]
[1739467802886,0.01115643,95901.0,95878.0,0.0478]
[1739467803185,0.2085487,95887.0,95878.0,0.0478]
[1739467803682,0.2085565,95884.0,95878.0,0.2563671]
[1739467803878,0.2085565,95884.0,95878.0,0.0478]
[1739467804075,0.2085565,95884.0,95882.0,0.01522022]
[1739467804279,0.2085565,95884.0,95882.0,0.00015643]
[1739467804478,0.2085565,95884.0,95882.0,0.00115643]
[1739467804680,0.3608,95885.0,95867.0,0.00156472]
[1739467804681,0.047,95883.0,95867.0,0.00156472]
[1739467804883,0.208578,95874.0,95867.0,0.01683912]
[1739467805088,0.208578,95874.0,95867.0,0.00156472]
[1739467805286,0.2085872,95870.0,95867.0,0.00156472]
[1739467805493,0.5693732,95876.0,95867.0,0.21015612]
[1739467805785,0.006,95884.0,95871.0,0.3608]
[1739467805995,0.00015643,95881.0,95879.0,0.2085644]
[1739467806877,0.00015643,95881.0,95880.0,0.0448]
[1739467807579,0.00415643,95881.0,95880.0,0.0448]
[1739467808181,0.00015643,95881.0,95880.0,0.0448]
[1739467808392,0.00515643,95881.0,95880.0,0.0468]
[1739467809275,0.00515643,95881.0,95880.0,0.002]
[1739467809981,0.00515643,95881.0,95880.0,0.001]
[1739467810188,0.2085639,95880.0,95871.0,0.3608]
[1739467810387,0.00015643,95881.0,95879.0,0.2085659]
[1739467811089,0.00115643,95881.0,95879.0,0.2085659]